lending/lending_fUSD_20250114
["ID","MTS","AMOUNT","RATE_DAILY","PERIOD"]
[348933126,1736877048764,-500.0,0.00010273,2]
[348933127,1736877048773,-500.0,0.00010273,2]
[348933128,1736877048782,-500.0,0.00010273,2]
[348933129,1736877048792,-532.68,0.00010273,2]
[348933130,1736877048802,-500.0,0.00010273,2]
[348933131,1736877048811,-1620.87,0.00010273,2]
[348933132,1736877048820,-500.0,0.00010273,2]
[348933133,1736877048833,-500.0,0.00010273,2]
[348933134,1736877048843,-500.0,0.00010273,2]
[348933135,1736877048852,-500.0,0.00010273,2]
[348933136,1736877048861,-500.0,0.00010273,2]
[348933137,1736877048872,-500.0,0.00010273,2]
[348933138,1736877048881,-682.1,0.00010273,2]
[348933139,1736877048890,-3112.02,0.00010273,2]
[348933140,1736877048899,-500.0,0.00010273,2]
[348933141,1736877048909,-500.0,0.00010273,2]
[348933142,1736877048919,-592.87,0.00010273,2]
[348933143,1736877048929,-500.0,0.00010273,2]
[348933144,1736877048939,-857.35,0.00010273,2]
[348933145,1736877048948,-500.0,0.00010273,2]
[348933146,1736877048958,-500.0,0.00010273,2]
[348933147,1736877048967,-500.0,0.00010273,2]
[348933148,1736877048977,-500.0,0.00010273,2]
[348933149,1736877048986,-1028.38,0.00010273,2]
[348933150,1736877048996,-1488.43697616,0.00010301,2]
[348933151,1736877049006,-1488.43697616,0.00010407,2]
[348933152,1736877049015,-955.64,0.00010422,2]
[348933153,1736877049024,-163.26256435,0.00010447,2]
[348933154,1736877049034,-500.0,0.00010509,2]
[348933155,1736877049044,-980.83,0.00010509,2]
[348933156,1736877049053,-693.08,0.0001051,2]
[348933157,1736877049063,-664.2,0.0001051,2]
[348933158,1736877049072,-1375.29,0.0001051,2]
[348933159,1736877049081,-974.97,0.0001051,2]
[348933160,1736877049090,-1524.45,0.0001051,2]
[348933161,1736877049099,-991.3,0.0001051,2]
[348933162,1736877049108,-950.69059652,0.0001051,2]
[348933163,1736877049122,-2389.66940348,0.0001051,2]
[348933164,1736877049131,-1071.57,0.0001051,2]
[348933165,1736877049141,-886.24,0.0001051,2]
[348933166,1736877049150,-1105.32,0.0001051,2]
[348933167,1736877049159,-500.0,0.0001051,2]
[348933168,1736877049168,-579.51,0.0001051,2]
[348933169,1736877049178,-1734.49,0.0001051,2]
[348933170,1736877049188,-663.76,0.0001051,2]
[348933171,1736877049197,-500.0,0.0001051,2]
[348933172,1736877049206,-941.26,0.0001051,2]
[348933173,1736877049216,-500.0,0.0001051,2]
[348933174,1736877049227,-698.6,0.0001051,2]
[348933175,1736877049236,-500.0,0.0001051,2]
[348933176,1736877049246,-583.77,0.0001051,2]
[348933177,1736877049255,-500.0,0.00010511,2]
[348933178,1736877049264,-1566.61,0.00010511,2]
[348933179,1736877049275,-131.85804652,0.00010511,2]
[348933180,1736877049287,-368.14195348,0.00010511,2]
[348933181,1736877049298,-570.81,0.00010511,2]
[348933182,1736877049307,-689.48,0.00010511,2]
[348933183,1736877049317,-1204.11,0.00010511,2]
[348933184,1736877049327,-500.0,0.00010511,2]
[348933185,1736877049336,-1000.0,0.00010511,2]
[348933186,1736877049346,-654.99,0.00010511,2]
[348933187,1736877049355,-500.0,0.00010511,2]
[348933188,1736877049364,-1118.35,0.00010511,2]
[348933189,1736877049374,-500.0,0.00010511,2]
[348933190,1736877049384,-1488.43697616,0.00010514,2]
[348933191,1736877049393,-500.0,0.00010521,2]
[348933192,1736877049403,-514.14673716,0.00010523,2]
[348933193,1736877049414,-329.71500023,0.00010523,2]
[348933194,1736877049432,-2669.17407776,0.00010523,2]
[348933195,1736877049447,-3572.25418485,0.00010523,2]
[348933196,1736877049456,-1582.95,0.00010537,2]
[348933197,1736877049466,-1970.29,0.00010537,2]
[348933198,1736877049474,-1373.99,0.00010537,2]
[348933199,1736877049486,-500.0,0.00010537,2]
[348933200,1736877049496,-807.68,0.00010537,2]
[348933201,1736877049505,-1959.34,0.00010537,2]
[348933202,1736877049514,-500.0,0.00010537,2]
[348933203,1736877049523,-500.0,0.00010537,2]
[348933204,1736877049532,-775.54,0.00010537,2]
[348933205,1736877049543,-546.36,0.00010537,2]
[348933206,1736877049552,-682.99,0.00010537,2]
[348933207,1736877049561,-500.0,0.00010537,2]
[348933208,1736877049571,-500.0,0.00010537,2]
[348933209,1736877049581,-1531.13,0.00010537,2]
[348933210,1736877049592,-500.0,0.00010537,2]
[348933211,1736877049602,-570.38,0.00010541,2]
[348933212,1736877049612,-563.46,0.00010541,2]
[348933213,1736877049623,-500.0,0.00010541,2]
[348933214,1736877049634,-915.37,0.00010541,2]
[348933215,1736877049644,-555.16,0.00010541,2]
[348933216,1736877049655,-1233.43,0.00010541,2]
[348933217,1736877049665,-500.0,0.00010543,2]
[348933218,1736877049675,-500.0,0.00010543,2]
[348933219,1736877049686,-500.0,0.00010543,2]
[348933220,1736877049695,-500.0,0.00010543,2]
[348933221,1736877049706,-500.0,0.00010543,2]
[348933222,1736877049716,-500.0,0.00010543,2]
[348933223,1736877049726,-582.68,0.00010543,2]
[348933224,1736877049736,-699.86,0.00010543,2]
[348933225,1736877049747,-2995.2,0.00010543,2]
[348933226,1736877049758,-768.85,0.00010543,2]
[348933227,1736877049768,-1597.75,0.00010543,2]
[348933228,1736877049778,-5227.73,0.00010543,2]
[348933229,1736877049787,-500.0,0.00010543,2]
[348933230,1736877049798,-757.26,0.00010543,2]
[348933231,1736877049807,-973.38,0.00010543,2]
[348933232,1736877049817,-157.48819901,0.00010543,2]
[348933233,1736877049829,-500.0,0.00010543,2]
[348933234,1736877049841,-500.0,0.00010543,2]
[348933235,1736877049852,-500.0,0.00010543,2]
[348933236,1736877049862,-1507.19,0.00010543,2]
[348933237,1736877049874,-500.0,0.00010543,2]
[348933238,1736877049884,-500.0,0.00010543,2]
[348933239,1736877049893,-500.0,0.00010543,2]
[348933240,1736877049903,-500.0,0.00010543,2]
[348933241,1736877049914,-709.73,0.00010543,2]
[348933242,1736877049924,-2049.9,0.00010543,2]
[348933243,1736877049935,-881.61,0.00010543,2]
[348933244,1736877049947,-552.64,0.00010543,2]
[348933245,1736877049956,-500.0,0.00010543,2]
[348933246,1736877049966,-1136.28023381,0.00010543,2]
[348933249,1736877359452,500.0,9.995e-05,7]
[348933250,1736877455840,860.07,8.219e-05,2]
[348933251,1736877509518,-4789.21,9.26e-05,2]
[348933252,1736877509541,-23900.0,9.273e-05,2]
[348933253,1736877509564,-250.0,9.559e-05,2]
[348933254,1736877509586,-1118.99807629,9.776e-05,2]
[348933255,1736877509608,-1118.99807628,9.776e-05,2]
[348933256,1736877509630,-150.0,9.875e-05,2]
[348933257,1736877509651,-36121.6084,9.876e-05,2]
[348933258,1736877509672,-500.0,9.882e-05,2]
[348933259,1736877509693,-985.46722265,9.882e-05,2]
[348933260,1736877509714,-1000.0,9.988e-05,2]
[348933261,1736877509735,-510.51,9.989e-05,2]
[348933262,1736877509757,-500.0,9.989e-05,2]
[348933263,1736877509780,-500.0,9.989e-05,2]
[348933264,1736877509803,-500.0,9.989e-05,2]
[348933265,1736877509826,-500.0,9.989e-05,2]
[348933266,1736877509849,-500.0,9.989e-05,2]
[348933267,1736877509871,-187.6726702,9.989e-05,2]
[348933268,1736877509893,-500.0,9.989e-05,2]
[348933269,1736877509914,-500.0,9.989e-05,2]
[348933270,1736877509936,-500.0,9.989e-05,2]
[348933271,1736877509959,-699.12,9.989e-05,2]
[348933272,1736877509982,-500.0,9.989e-05,2]
[348933273,1736877510007,-500.0,9.989e-05,2]
[348933274,1736877510031,-500.0,9.989e-05,2]
[348933275,1736877510055,-500.0,9.989e-05,2]
[348933276,1736877510077,-500.0,9.989e-05,2]
[348933277,1736877510099,-500.0,9.989e-05,2]
[348933278,1736877510121,-500.0,9.989e-05,2]
[348933279,1736877510143,-564.06,9.989e-05,2]
[348933280,1736877510165,-631.05,9.989e-05,2]
[348933281,1736877510187,-500.0,9.989e-05,2]
[348933282,1736877510213,-500.0,9.989e-05,2]
[348933283,1736877510239,-500.0,9.989e-05,2]
[348933284,1736877510261,-545.02,9.989e-05,2]
[348933285,1736877510282,-500.0,9.989e-05,2]
[348933286,1736877510304,-500.0,9.989e-05,2]
[348933287,1736877510328,-655.11,9.989e-05,2]
[348933288,1736877510354,-500.0,9.989e-05,2]
[348933289,1736877510376,-500.0,9.989e-05,2]
[348933290,1736877510400,-1082.37,9.989e-05,2]
[348933291,1736877510426,-500.0,9.989e-05,2]
[348933292,1736877510452,-261.94338261,9.989e-05,2]
[348933293,1736877510475,-500.0,9.989e-05,2]
[348933294,1736877510498,-500.0,9.989e-05,2]
[348933295,1736877510520,-500.0,9.989e-05,2]
[348933296,1736877510544,-500.0,9.989e-05,2]
[348933297,1736877510566,-500.0,9.989e-05,2]
[348933298,1736877510588,-500.0,9.989e-05,2]
[348933299,1736877510610,-500.0,9.989e-05,2]
[348933300,1736877510632,-500.0,9.989e-05,2]
[348933301,1736877510654,-500.0,9.989e-05,2]
[348933302,1736877510675,-758.14,9.989e-05,2]
[348933303,1736877510697,-675.4,9.989e-05,2]
[348933304,1736877510720,-500.0,9.989e-05,2]
[348933305,1736877510741,-428.71449693,9.989e-05,2]
[348933306,1736877510769,-500.0,9.989e-05,2]
[348933307,1736877510791,-855.6,9.989e-05,2]
[348933308,1736877510813,-556.04,9.989e-05,2]
[348933309,1736877510837,-500.0,9.989e-05,2]
[348933310,1736877510861,-505.24,9.989e-05,2]
[348933311,1736877510883,-699.971328,9.989e-05,2]
[348933312,1736877510907,-550.25,9.989e-05,2]
[348933313,1736877510929,-500.0,9.989e-05,2]
[348933314,1736877510951,-500.0,9.989e-05,2]
[348933315,1736877510976,-500.0,9.989e-05,2]
[348933316,1736877511001,-500.0,9.989e-05,2]
[348933317,1736877511026,-399.50634704,9.989e-05,2]
[348933345,1736878232086,-524.7693386,9.09e-05,2]
[348933346,1736878232164,-275.9432614,9.09e-05,2]
[348933347,1736878232174,-250.0,9.136e-05,2]
[348933348,1736878232183,-400.67,9.23e-05,2]
[348933349,1736878232192,-8775.1,9.237e-05,2]
[348933350,1736878232201,-276.74,9.29e-05,2]
[348933351,1736878232210,-1000.0,9.412e-05,2]
[348933352,1736878232222,-16658.15487181,9.862e-05,2]
[348933353,1736878232232,-150.0,9.894e-05,2]
[348933354,1736878232241,-5583.20332716,9.895e-05,2]
[348933355,1736878232294,-5285.82637153,9.895e-05,2]
[348933356,1736878232405,-530.00096762,9.895e-05,2]
[348933357,1736878232417,-3053.39203369,9.895e-05,2]
[348933358,1736878232426,-1921.1561,9.895e-05,2]
[348933359,1736878232436,-3981.42925936,9.898e-05,2]
[348933360,1736878232450,-399.53474064,9.898e-05,2]
[348933361,1736878232460,-1127.19488473,9.988e-05,2]
[348933362,1736878232469,-3.48486529,9.989e-05,2]
[348933371,1736878232723,-496.51513471,9.989e-05,2]
[348933373,1736878232733,-500.0,9.989e-05,2]
[348933375,1736878232742,-500.0,9.989e-05,2]
[348933377,1736878232752,-509.79,9.989e-05,2]
[348933379,1736878232761,-500.0,9.989e-05,2]
[348933381,1736878232771,-500.0,9.989e-05,2]
[348933383,1736878232780,-500.0,9.989e-05,2]
[348933385,1736878232789,-500.0,9.989e-05,2]
[348933387,1736878232798,-603.68,9.989e-05,2]
[348933389,1736878232807,-500.0,9.989e-05,2]
[348933391,1736878232816,-500.0,9.989e-05,2]
[348933392,1736878232826,-500.0,9.989e-05,2]
[348933394,1736878232835,-500.0,9.989e-05,2]
[348933396,1736878232844,-500.0,9.989e-05,2]
[348933398,1736878232853,-500.0,9.989e-05,2]
[348933400,1736878232863,-500.0,9.989e-05,2]
[348933402,1736878232872,-500.0,9.989e-05,2]
[348933404,1736878232881,-500.0,9.989e-05,2]
[348933405,1736878232890,-500.0,9.989e-05,2]
[348933407,1736878232899,-500.0,9.989e-05,2]
[348933409,1736878232908,-500.0,9.989e-05,2]
[348933411,1736878232917,-500.0,9.989e-05,2]
[348933413,1736878232927,-500.0,9.989e-05,2]
[348933415,1736878232936,-500.0,9.989e-05,2]
[348933417,1736878232945,-500.0,9.989e-05,2]
[348933419,1736878232954,-500.0,9.989e-05,2]
[348933420,1736878232963,-500.0,9.989e-05,2]
[348933422,1736878232972,-500.0,9.989e-05,2]
[348933424,1736878232980,-500.0,9.989e-05,2]
[348933426,1736878232989,-627.69,9.989e-05,2]
[348933428,1736878232998,-500.0,9.989e-05,2]
[348933430,1736878233007,-500.0,9.989e-05,2]
[348933431,1736878233016,-500.0,9.989e-05,2]
[348933433,1736878233026,-500.0,9.989e-05,2]
[348933435,1736878233036,-500.0,9.989e-05,2]
[348933437,1736878233046,-500.0,9.989e-05,2]
[348933439,1736878233055,-500.0,9.989e-05,2]
[348933441,1736878233064,-744.72,9.989e-05,2]
[348933443,1736878233074,-500.0,9.989e-05,2]
[348933445,1736878233084,-713.52,9.989e-05,2]
[348933447,1736878233093,-500.0,9.989e-05,2]
[348933448,1736878233102,-864.98,9.989e-05,2]
[348933450,1736878233111,-500.0,9.989e-05,2]
[348933452,1736878233121,-500.0,9.989e-05,2]
[348933454,1736878233130,-500.0,9.989e-05,2]
[348933456,1736878233140,-500.0,9.989e-05,2]
[348933458,1736878233151,-500.0,9.989e-05,2]
[348933460,1736878233161,-2575.81,9.989e-05,2]
[348933461,1736878233170,-500.0,9.989e-05,2]
[348933463,1736878233179,-500.0,9.989e-05,2]
[348933465,1736878233189,-500.0,9.989e-05,2]
[348933467,1736878233199,-1114.02,9.989e-05,2]
[348933469,1736878233210,-500.0,9.989e-05,2]
[348933471,1736878233221,-500.0,9.989e-05,2]
[348933473,1736878233231,-500.0,9.989e-05,2]
[348933474,1736878233241,-2719.92,9.989e-05,2]
[348933476,1736878233251,-500.0,9.989e-05,2]
[348933478,1736878233262,-500.0,9.989e-05,2]
[348933479,1736878233271,-2930.98,9.989e-05,2]
[348933480,1736878233280,-500.0,9.989e-05,2]
[348933481,1736878233290,-500.0,9.989e-05,2]
[348933482,1736878233300,-665.0,9.989e-05,2]
[348933483,1736878233310,-500.0,9.989e-05,2]
[348933484,1736878233319,-500.0,9.989e-05,2]
[348933485,1736878233328,-500.0,9.989e-05,2]
[348933486,1736878233338,-500.0,9.989e-05,2]
[348933487,1736878233347,-500.0,9.989e-05,2]
[348933488,1736878233356,-542.53,9.989e-05,2]
[348933489,1736878233366,-1485.8,9.989e-05,2]
[348933490,1736878233376,-500.0,9.989e-05,2]
[348933491,1736878233385,-500.0,9.989e-05,2]
[348933492,1736878233394,-500.0,9.989e-05,2]
[348933493,1736878233403,-500.0,9.989e-05,2]
[348933494,1736878233412,-3118.31,9.989e-05,2]
[348933495,1736878233422,-731.33,9.989e-05,2]
[348933496,1736878233431,-500.0,9.989e-05,2]
[348933497,1736878233440,-500.4618116,9.989e-05,2]
[348933498,1736878233450,-638.79,9.989e-05,2]
[348933499,1736878233459,-500.0,9.989e-05,2]
[348933500,1736878233468,-500.0,9.989e-05,2]
[348933502,1736878233477,-920.43,9.989e-05,2]
[348933504,1736878233487,-1078.83,9.989e-05,2]
[348933506,1736878233496,-500.0,9.989e-05,2]
[348933508,1736878233505,-500.0,9.989e-05,2]
[348933510,1736878233515,-707.71,9.993e-05,2]
[348933512,1736878233525,-1365.97,9.993e-05,2]
[348933513,1736878233535,-6509.12,9.993e-05,2]
[348933516,1736878233545,-938.65,9.993e-05,2]
[348933517,1736878233555,-1780.53,9.993e-05,2]
[348933519,1736878233565,-151.29335019,9.995e-05,2]
[348933521,1736878233575,-500.0,9.995e-05,2]
[348933523,1736878233584,-500.0,9.995e-05,2]
[348933525,1736878233595,-500.0,9.995e-05,2]
[348933527,1736878233604,-502.00181446,9.995e-05,2]
[348933529,1736878233615,-500.0,9.995e-05,2]
[348933531,1736878233626,-500.0,9.995e-05,2]
[348933533,1736878233636,-504.70163025,9.995e-05,2]
[348933535,1736878233646,-500.0,9.995e-05,2]
[348933537,1736878233655,-500.0,9.995e-05,2]
[348933539,1736878233664,-516.77387237,9.995e-05,2]
[348933541,1736878233674,-500.0,9.995e-05,2]
[348933543,1736878233683,-504.48375104,9.995e-05,2]
[348933545,1736878233693,-500.0,9.995e-05,2]
[348933547,1736878233702,-500.3439747,9.995e-05,2]
[348933549,1736878233712,-500.0,9.995e-05,2]
[348933551,1736878233721,-500.0,9.995e-05,2]
[348933553,1736878233731,-500.0,9.995e-05,2]
[348933555,1736878233741,-500.0,9.995e-05,2]
[348933557,1736878233751,-500.0,9.995e-05,2]
[348933559,1736878233761,-500.0,9.995e-05,2]
[348933561,1736878233771,-500.0,9.995e-05,2]
[348933563,1736878233781,-500.0,9.995e-05,2]
[348933565,1736878233791,-502.83631306,9.995e-05,2]
[348933567,1736878233800,-506.5363119,9.995e-05,2]
[348933569,1736878233809,-500.0,9.995e-05,2]
[348933570,1736878233819,-500.0,9.995e-05,2]
[348933571,1736878233829,-500.0,9.995e-05,2]
[348933572,1736878233838,-503.62982284,9.995e-05,2]
[348933573,1736878233847,-500.0,9.995e-05,2]
[348933574,1736878233857,-505.11134391,9.995e-05,2]
[348933575,1736878233868,-500.0,9.995e-05,2]
[348933576,1736878233877,-500.0,9.995e-05,2]
[348933577,1736878233887,-500.0,9.995e-05,2]
[348933578,1736878233897,-500.0,9.995e-05,2]
[348933579,1736878233906,-500.0,9.995e-05,2]
[348933580,1736878233916,-500.0,9.995e-05,2]
[348933581,1736878233926,-500.0,9.995e-05,2]
[348933582,1736878233936,-500.0,9.995e-05,2]
[348933583,1736878233945,-500.0,9.995e-05,2]
[348933584,1736878233955,-500.0,9.995e-05,2]
[348933585,1736878233965,-505.32676989,9.995e-05,2]
[348933586,1736878233975,-500.0,9.995e-05,2]
[348933587,1736878233984,-500.0,9.995e-05,2]
[348933588,1736878233994,-500.0,9.995e-05,2]
[348933589,1736878234003,-500.0,9.995e-05,2]
[348933590,1736878234013,-500.0,9.995e-05,2]
[348933591,1736878234023,-500.0,9.995e-05,2]
[348933592,1736878234032,-500.0,9.995e-05,2]
[348933593,1736878234042,-511.77826524,9.995e-05,2]
[348933594,1736878234052,-500.0,9.995e-05,2]
[348933595,1736878234061,-500.0,9.995e-05,2]
[348933596,1736878234071,-504.95430542,9.995e-05,2]
[348933597,1736878234081,-500.0,9.995e-05,2]
[348933598,1736878234091,-501.64239618,9.995e-05,2]
[348933599,1736878234100,-500.0,9.995e-05,2]
[348933600,1736878234110,-581.69,9.995e-05,2]
[348933601,1736878234121,-500.0,9.995e-05,2]
[348933602,1736878234131,-500.0,9.995e-05,2]
[348933603,1736878234140,-500.47520742,9.995e-05,2]
[348933604,1736878234150,-500.0,9.995e-05,2]
[348933605,1736878234160,-505.63319729,9.995e-05,2]
[348933606,1736878234170,-501.0170586,9.995e-05,2]
[348933607,1736878234180,-501.06757457,9.995e-05,2]
[348933608,1736878234189,-500.0,9.995e-05,2]
[348933609,1736878234199,-500.0,9.995e-05,2]
[348933610,1736878234208,-500.0,9.995e-05,2]
[348933611,1736878234218,-500.0,9.995e-05,2]
[348933612,1736878234230,-500.0,9.995e-05,2]
[348933613,1736878234240,-500.0,9.995e-05,2]
[348933614,1736878234250,-500.0,9.995e-05,2]
[348933615,1736878234260,-500.0,9.995e-05,2]
[348933616,1736878234271,-500.0,9.995e-05,2]
[348933617,1736878234281,-500.0,9.995e-05,2]
[348933618,1736878234291,-500.0,9.995e-05,2]
[348933619,1736878234302,-500.0,9.995e-05,2]
[348933620,1736878234312,-500.0,9.995e-05,2]
[348933621,1736878234321,-500.0,9.995e-05,2]
[348933622,1736878234331,-500.0,9.995e-05,2]
[348933623,1736878234340,-967.48403458,9.995e-05,2]
[348933624,1736878234350,-503.3508729,9.997e-05,2]
[348933625,1736878234359,-500.0,9.997e-05,2]
[348933626,1736878234370,-1592.13,9.997e-05,2]
[348933627,1736878234380,-1971.74,9.997e-05,2]
[348933628,1736878234389,-1373.22,9.997e-05,2]
[348933629,1736878234399,-500.0,9.997e-05,2]
[348933630,1736878234409,-811.28,9.997e-05,2]
[348933631,1736878234419,-1908.33,9.997e-05,2]
[348933632,1736878234429,-500.0,9.997e-05,2]
[348933633,1736878234439,-500.0,9.997e-05,2]
[348933634,1736878234449,-678.6,9.997e-05,2]
[348933635,1736878234459,-500.0,9.997e-05,2]
[348933636,1736878234468,-500.0,9.997e-05,2]
[348933637,1736878234478,-1432.85,9.997e-05,2]
[348933638,1736878234488,-500.0,9.997e-05,2]
[348933639,1736878234498,-1596.000001,9.997e-05,3]
[348933640,1736878234507,-500.0,9.997e-05,2]
[348933641,1736878234517,-500.0,9.998e-05,2]
[348933642,1736878234527,-1057.39,9.998e-05,2]
[348933643,1736878234536,-500.0,9.998e-05,2]
[348933644,1736878234546,-500.0,9.998e-05,2]
[348933645,1736878234555,-500.0,9.998e-05,2]
[348933646,1736878234565,-523.3,9.998e-05,2]
[348933647,1736878234575,-3536.93,9.998e-05,2]
[348933648,1736878234585,-360.53425979,9.998e-05,2]
[348933649,1736878234595,-500.0,9.998e-05,2]
[348933650,1736878234605,-500.0,9.998e-05,2]
[348933651,1736878234619,-503.11114143,9.998e-05,2]
[348933652,1736878234629,-508.43258962,9.998e-05,2]
[348933653,1736878234639,-500.0,9.998e-05,2]
[348933654,1736878234649,-501.55883974,9.998e-05,2]
[348933655,1736878234659,-500.0,9.998e-05,2]
[348933656,1736878234669,-500.0,9.998e-05,2]
[348933657,1736878234679,-612.18631062,9.998e-05,2]
[348933658,1736878234688,-500.0,9.998e-05,2]
[348933659,1736878234698,-530.0933391,9.998e-05,2]
[348933660,1736878234707,-500.0,9.998e-05,2]
[348933661,1736878234718,-500.0,9.998e-05,2]
[348933662,1736878234727,-500.0,9.998e-05,2]
[348933663,1736878234737,-536.24,9.998e-05,2]
[348933664,1736878234746,-1146.73,9.998e-05,2]
[348933665,1736878234756,-500.0,9.998e-05,2]
[348933666,1736878234766,-500.0,9.998e-05,2]
[348933667,1736878234776,-500.0,9.998e-05,2]
[348933668,1736878234786,-500.0,9.998e-05,2]
[348933669,1736878234796,-500.0,9.998e-05,2]
[348933670,1736878234806,-500.0,9.998e-05,2]
[348933671,1736878234816,-500.0,9.998e-05,2]
[348933672,1736878234826,-500.0,9.998e-05,2]
[348933673,1736878234835,-1235.34,9.998e-05,2]
[348933674,1736878234844,-500.0,9.998e-05,2]
[348933675,1736878234855,-481.18359853,9.998e-05,2]
[348933676,1736878234864,-500.0,9.998e-05,2]
[348933677,1736878234877,-500.0,9.998e-05,2]
[348933678,1736878234886,-500.0,9.998e-05,2]
[348933679,1736878234896,-712.73,9.998e-05,2]
[348933680,1736878234905,-518.69,9.998e-05,2]
[348933681,1736878234914,-500.0,9.998e-05,2]
[348933682,1736878234923,-1213.25,9.998e-05,2]
[348933683,1736878234932,-500.0,9.998e-05,2]
[348933684,1736878234941,-500.0,9.998e-05,2]
[348933685,1736878234952,-500.0,9.998e-05,2]
[348933686,1736878234962,-500.0,9.998e-05,2]
[348933687,1736878234972,-500.0,9.998e-05,2]
[348933688,1736878234981,-500.0,9.998e-05,2]
[348933689,1736878234991,-500.0,9.998e-05,2]
[348933690,1736878235000,-563.88,9.998e-05,2]
[348933691,1736878235009,-500.0,9.998e-05,2]
[348933692,1736878235019,-500.0,9.998e-05,2]
[348933693,1736878235028,-499.48612346,9.998e-05,2]
[348933694,1736878235037,-642.31,9.998e-05,2]
[348933695,1736878235047,-606.99434691,9.998e-05,2]
[348933696,1736878235056,-715.09,9.998e-05,2]
[348933697,1736878235065,-631.87,9.998e-05,2]
[348933698,1736878235074,-500.0,9.998e-05,2]
[348933699,1736878235084,-500.49234578,9.998e-05,2]
[348933700,1736878235094,-500.0,9.998e-05,2]
[348933701,1736878235104,-500.0,9.998e-05,2]
[348933702,1736878235114,-543.72,9.998e-05,2]
[348933703,1736878235128,-500.0,9.998e-05,2]
[348933704,1736878235137,-500.0,9.998e-05,2]
[348933705,1736878235146,-500.0,9.998e-05,2]
[348933706,1736878235156,-500.0,9.998e-05,2]
[348933707,1736878235165,-1857.41,9.998e-05,2]
[348933708,1736878235175,-652.4,9.998e-05,2]
[348933709,1736878235185,-500.0,9.998e-05,2]
[348933710,1736878235195,-500.0,9.998e-05,2]
[348933711,1736878235204,-500.0,9.998e-05,2]
[348933712,1736878235213,-500.0,9.998e-05,2]
[348933713,1736878235224,-500.0,9.998e-05,2]
[348933714,1736878235233,-500.0,9.998e-05,2]
[348933715,1736878235243,-634.6,9.998e-05,2]
[348933716,1736878235253,-500.0,9.998e-05,2]
[348933717,1736878235264,-500.0,9.998e-05,2]
[348933718,1736878235274,-740.18,9.998e-05,2]
[348933719,1736878235283,-500.0,9.998e-05,2]
[348933720,1736878235293,-500.0,9.998e-05,2]
[348933721,1736878235304,-668.09,9.998e-05,2]
[348933722,1736878235315,-532.87,9.998e-05,2]
[348933723,1736878235324,-500.0,9.998e-05,2]
[348933724,1736878235333,-500.0,9.998e-05,2]
[348933725,1736878235342,-500.0,9.998e-05,2]
[348933726,1736878235352,-500.0,9.998e-05,2]
[348933727,1736878235361,-500.0,9.998e-05,2]
[348933728,1736878235374,-500.0,9.998e-05,2]
[348933729,1736878235383,-500.0,9.998e-05,2]
[348933730,1736878235392,-500.0,9.998e-05,2]
[348933731,1736878235402,-500.0,9.998e-05,2]
[348933732,1736878235411,-500.0,9.998e-05,2]
[348933733,1736878235421,-500.0,9.998e-05,2]
[348933734,1736878235430,-500.0,9.998e-05,2]
[348933735,1736878235440,-500.0,9.998e-05,2]
[348933736,1736878235450,-500.0,9.998e-05,2]
[348933737,1736878235464,-500.0,9.998e-05,2]
[348933738,1736878235474,-500.0,9.998e-05,2]
[348933739,1736878235484,-500.0,9.998e-05,2]
[348933740,1736878235494,-500.0,9.998e-05,2]
[348933741,1736878235503,-862.83,9.998e-05,2]
[348933742,1736878235514,-500.0,9.998e-05,2]
[348933743,1736878235523,-500.0,9.998e-05,2]
[348933744,1736878235534,-500.0,9.998e-05,2]
[348933745,1736878235543,-500.0,9.998e-05,2]
[348933746,1736878235553,-500.0,9.998e-05,2]